[Event "*** SCC Grand Prix: Titled Tuesday Blitz"]
[Site "Chess.com"]
[Date "2020.08.04"]
[Round "8"]
[White "Chuchofrio1"]
[Black "davigator"]
[Result "0-1"]
[WhiteElo "2281"]
[BlackElo "2277"]
[TimeControl "180+1"]
[EndTime "15:17:34 PDT"]
[Termination "davigator won by resignation"]

1. e4 {[%clk 0:03:00.9]} 1... c5 {[%clk 0:02:59.8]} 2. Nc3 {[%clk 0:03:00.1]}
2... Nc6 {[%clk 0:02:59.3]} 3. Bb5 {[%clk 0:03:00.7]} 3... Nd4 {[%clk
0:02:57.9]} 4. Bc4 {[%clk 0:03:01]} 4... e6 {[%clk 0:02:57.5]} 5. Nge2 {[%clk
0:03:01.5]} 5... Nc6 {[%clk 0:02:54.3]} 6. O-O {[%clk 0:03:01.3]} 6... d6 {[%clk
0:02:52.2]} 7. d3 {[%clk 0:03:01.2]} 7... Nf6 {[%clk 0:02:49.9]} 8. Bg5 {[%clk
0:02:59.7]} 8... Be7 {[%clk 0:02:49.6]} 9. f4 {[%clk 0:02:58.6]} 9... O-O {[%clk
0:02:48.5]} 10. a3 {[%clk 0:02:55.4]} 10... Rb8 {[%clk 0:02:34.6]} 11. Ng3
{[%clk 0:02:51.1]} 11... h6 {[%clk 0:02:28.3]} 12. Bxf6 {[%clk 0:02:50.4]} 12...
Bxf6 {[%clk 0:02:27.8]} 13. f5 {[%clk 0:02:50.3]} 13... Nd4 {[%clk 0:02:11.3]}
14. Nh5 {[%clk 0:02:34]} 14... Be5 {[%clk 0:02:10.8]} 15. Qg4 {[%clk 0:02:11.1]}
15... Qg5 {[%clk 0:02:09.4]} 16. Qxg5 {[%clk 0:02:09]} 16... hxg5 {[%clk
0:02:09.2]} 17. Rac1 {[%clk 0:02:07.1]} 17... b5 {[%clk 0:02:06.5]} 18. Ba2
{[%clk 0:02:06.6]} 18... Bd7 {[%clk 0:01:58]} 19. fxe6 {[%clk 0:02:06.3]} 19...
fxe6 {[%clk 0:01:57.3]} 20. Ng3 {[%clk 0:02:02.9]} 20... Bxg3 {[%clk 0:01:55.5]}
21. hxg3 {[%clk 0:02:03.8]} 21... Rxf1+ {[%clk 0:01:55]} 22. Kxf1 {[%clk
0:02:03.9]} 22... Rf8+ {[%clk 0:01:55.1]} 23. Ke1 {[%clk 0:02:03.7]} 23... Kh7
{[%clk 0:01:52.8]} 24. Ne2 {[%clk 0:02:03.8]} 24... Nc6 {[%clk 0:01:49.6]} 25.
Kd2 {[%clk 0:01:57.6]} 25... Kg6 {[%clk 0:01:49.4]} 26. Ke3 {[%clk 0:01:56.8]}
26... a5 {[%clk 0:01:46.8]} 27. c3 {[%clk 0:01:54.8]} 27... b4 {[%clk
0:01:45.4]} 28. d4 {[%clk 0:01:53.4]} 28... bxa3 {[%clk 0:01:31]} 29. bxa3
{[%clk 0:01:52.4]} 29... Rb8 {[%clk 0:01:30.8]} 30. dxc5 {[%clk 0:01:50.8]}
30... Rb2 {[%clk 0:01:27.9]} 31. Bc4 {[%clk 0:01:47.4]} 31... Ne5 {[%clk
0:01:27.9]} 32. Ba6 {[%clk 0:01:39.2]} 32... dxc5 {[%clk 0:01:27.2]} 33. Rd1
{[%clk 0:01:38.4]} 33... Rb6 {[%clk 0:01:17.2]} 34. Bd3 {[%clk 0:01:35.1]} 34...
Kf6 {[%clk 0:01:16.6]} 35. Rf1+ {[%clk 0:01:30.9]} 35... Ke7 {[%clk 0:01:15.8]}
36. c4 {[%clk 0:01:25.4]} 36... Rb3 {[%clk 0:01:14.7]} 37. Rd1 {[%clk
0:01:24.6]} 37... Rxa3 {[%clk 0:01:15.1]} 38. Nc1 {[%clk 0:01:19.2]} 38... Nxc4+
{[%clk 0:01:14.5]} 39. Kf2 {[%clk 0:01:17.8]} 39... Ne5 {[%clk 0:01:13.2]} 40.
Be2 {[%clk 0:01:16.6]} 40... Bc6 {[%clk 0:01:12.9]} 41. Nd3 {[%clk 0:01:12.9]}
41... Nxd3+ {[%clk 0:01:09.2]} 42. Bxd3 {[%clk 0:01:13.8]} 42... Rc3 {[%clk
0:01:07.1]} 43. Be2 {[%clk 0:01:11.3]} 43... Bxe4 {[%clk 0:01:06]} 44. Ra1
{[%clk 0:01:11.2]} 44... Rc2 {[%clk 0:01:03.8]} 45. Ke3 {[%clk 0:01:04.4]} 45...
Bxg2 {[%clk 0:01:03.5]} 46. Rxa5 {[%clk 0:01:03.9]} 46... Bd5 {[%clk 0:01:03.6]}
47. Ra7+ {[%clk 0:01:03.4]} 47... Kf6 {[%clk 0:01:03.6]} 48. Rc7 {[%clk
0:01:01.8]} 48... c4 {[%clk 0:01:02.2]} 49. Rc5 {[%clk 0:01:00.4]} 49... Ke5
{[%clk 0:01:00.5]} 50. Rc7 {[%clk 0:01:00]} 50... Kf6 {[%clk 0:01:00.6]} 51. g4
{[%clk 0:00:57]} 51... Rc3+ {[%clk 0:01:00.2]} 52. Kd4 {[%clk 0:00:56.4]} 52...
Rc2 {[%clk 0:00:59.6]} 53. Bf1 {[%clk 0:00:54.7]} 53... Rf2 {[%clk 0:00:57.6]}
54. Bh3 {[%clk 0:00:47.1]} 54... Rf4+ {[%clk 0:00:57.8]} 55. Kc3 {[%clk
0:00:46.5]} 55... Rf3+ {[%clk 0:00:57.1]} 56. Kd4 {[%clk 0:00:46.9]} 56... Rd3+
{[%clk 0:00:55]} 57. Kc5 {[%clk 0:00:46.7]} 57... Rxh3 {[%clk 0:00:55.7]} 58.
Kb4 {[%clk 0:00:46.1]} 58... Rg3 {[%clk 0:00:55.2]} 59. Rc8 {[%clk 0:00:45.7]}
59... Rxg4 {[%clk 0:00:55]} 60. Rf8+ {[%clk 0:00:46.2]} 60... Ke5 {[%clk
0:00:55.6]} 61. Rf1 {[%clk 0:00:46.1]} 61... Rg3 {[%clk 0:00:54.5]} 62. Re1+
{[%clk 0:00:46.3]} 62... Kd6 {[%clk 0:00:54.7]} 63. Rc1 {[%clk 0:00:46.2]} 63...
Rb3+ {[%clk 0:00:54.4]} 64. Ka4 {[%clk 0:00:45.8]} 64... Kc5 {[%clk 0:00:53.4]}
65. Ra1 {[%clk 0:00:42.3]} 65... Bc6+ {[%clk 0:00:52.7]} 66. Ka5 {[%clk
0:00:42.6]} 66... Rb8 {[%clk 0:00:51.7]} 0-1

[Event "*** SCC Grand Prix: Titled Tuesday Blitz"]
[Site "Chess.com"]
[Date "2020.08.04"]
[Round "8"]
[White "Firouzja2003"]
[Black "Alexander_Moskalenko"]
[Result "0-1"]
[WhiteElo "3018"]
[BlackElo "2842"]
[TimeControl "180+1"]
[EndTime "15:17:36 PDT"]
[Termination "Alexander_Moskalenko won on time"]

1. e4 {[%clk 0:03:00.9]} 1... c6 {[%clk 0:03:00.9]} 2. d4 {[%clk 0:02:57.7]}
2... d5 {[%clk 0:03:01.8]} 3. e5 {[%clk 0:02:58.2]} 3... Bf5 {[%clk 0:03:00.8]}
4. Nf3 {[%clk 0:02:58.5]} 4... e6 {[%clk 0:03:00.5]} 5. Be2 {[%clk 0:02:59.1]}
5... Ne7 {[%clk 0:03:00.4]} 6. c3 {[%clk 0:02:57.7]} 6... Ng6 {[%clk 0:02:55.3]}
7. O-O {[%clk 0:02:53.6]} 7... Nd7 {[%clk 0:02:49.3]} 8. Be3 {[%clk 0:02:46.9]}
8... f6 {[%clk 0:02:46.4]} 9. exf6 {[%clk 0:02:46.9]} 9... Qxf6 {[%clk
0:02:47.3]} 10. Nbd2 {[%clk 0:02:39]} 10... Bd6 {[%clk 0:02:47]} 11. Re1 {[%clk
0:02:37.6]} 11... O-O {[%clk 0:02:46.2]} 12. Nf1 {[%clk 0:02:36.7]} 12... Rae8
{[%clk 0:02:37.3]} 13. Ng3 {[%clk 0:02:36.3]} 13... Bg4 {[%clk 0:02:07.9]} 14.
Qb3 {[%clk 0:02:23.9]} 14... Nf4 {[%clk 0:01:38.7]} 15. Bxf4 {[%clk 0:02:18.6]}
15... Bxf4 {[%clk 0:01:39.6]} 16. Qxb7 {[%clk 0:02:11]} 16... e5 {[%clk
0:01:39.9]} 17. h3 {[%clk 0:01:47.8]} 17... Rb8 {[%clk 0:01:37.8]} 18. Qa6
{[%clk 0:01:25.2]} 18... Bxf3 {[%clk 0:01:36.6]} 19. Bxf3 {[%clk 0:01:25.4]}
19... e4 {[%clk 0:01:37.2]} 20. Bg4 {[%clk 0:01:15.2]} 20... Rxb2 {[%clk
0:01:36.5]} 21. Nh5 {[%clk 0:01:03.2]} 21... Qd6 {[%clk 0:01:32.7]} 22. Re2
{[%clk 0:00:56.6]} 22... Rxe2 {[%clk 0:01:28.2]} 23. Qxe2 {[%clk 0:00:57.5]}
23... Bg5 {[%clk 0:01:08.5]} 24. Bxd7 {[%clk 0:00:53.7]} 24... Qxd7 {[%clk
0:01:08]} 25. Rb1 {[%clk 0:00:52.5]} 25... Bh4 {[%clk 0:01:00.6]} 26. Ng3 {[%clk
0:00:47.1]} 26... Qc7 {[%clk 0:00:57.7]} 27. Qg4 {[%clk 0:00:38.5]} 27... Bxg3
{[%clk 0:00:50.2]} 28. fxg3 {[%clk 0:00:39.4]} 28... Qe7 {[%clk 0:00:46.8]} 29.
Kh2 {[%clk 0:00:35.7]} 29... e3 {[%clk 0:00:34.5]} 30. Re1 {[%clk 0:00:34.8]}
30... Re8 {[%clk 0:00:34.6]} 31. Re2 {[%clk 0:00:32.4]} 31... a5 {[%clk
0:00:31.2]} 32. Qf5 {[%clk 0:00:29.6]} 32... a4 {[%clk 0:00:25]} 33. Qd3 {[%clk
0:00:26.4]} 33... h6 {[%clk 0:00:23.1]} 34. Qa6 {[%clk 0:00:22.8]} 34... Qe4
{[%clk 0:00:14]} 35. Qxc6 {[%clk 0:00:19]} 35... Rf8 {[%clk 0:00:14.3]} 36. Qb5
{[%clk 0:00:04.7]} 36... Rf2 {[%clk 0:00:14]} 37. Rxf2 {[%clk 0:00:01.4]} 37...
exf2 {[%clk 0:00:14.9]} 0-1

[Event "*** SCC Grand Prix: Titled Tuesday Blitz"]
[Site "Chess.com"]
[Date "2020.08.04"]
[Round "8"]
[White "Bastiandash"]
[Black "Vladislav_Chizhikov"]
[Result "1-0"]
[WhiteElo "2328"]
[BlackElo "2443"]
[TimeControl "180+1"]
[EndTime "15:17:37 PDT"]
[Termination "Bastiandash won by checkmate"]

1. e4 {[%clk 0:03:00.9]} 1... e6 {[%clk 0:02:59.8]} 2. d4 {[%clk 0:03:00.7]}
2... d5 {[%clk 0:03:00.7]} 3. Bd3 {[%clk 0:03:00.4]} 3... dxe4 {[%clk
0:02:59.9]} 4. Bxe4 {[%clk 0:03:01.3]} 4... Nf6 {[%clk 0:02:59.9]} 5. Bf3 {[%clk
0:03:01.9]} 5... c5 {[%clk 0:03:00.1]} 6. Ne2 {[%clk 0:03:02.1]} 6... Qb6 {[%clk
0:02:58.7]} 7. O-O {[%clk 0:02:58.2]} 7... Nc6 {[%clk 0:02:58.7]} 8. Be3 {[%clk
0:02:43.5]} 8... Qxb2 {[%clk 0:02:55.3]} 9. Nbc3 {[%clk 0:02:32]} 9... cxd4
{[%clk 0:02:55.2]} 10. Rb1 {[%clk 0:02:31.9]} 10... Qa3 {[%clk 0:02:45.7]} 11.
Nb5 {[%clk 0:02:15.6]} 11... Qa5 {[%clk 0:02:44.8]} 12. Nexd4 {[%clk 0:02:09.4]}
12... Ne5 {[%clk 0:02:37.2]} 13. Bf4 {[%clk 0:01:45.7]} 13... Nfd7 {[%clk
0:02:18.8]} 14. Qe2 {[%clk 0:01:40.3]} 14... a6 {[%clk 0:02:08.3]} 15. Bxe5
{[%clk 0:01:30.2]} 15... axb5 {[%clk 0:02:06.2]} 16. Nxb5 {[%clk 0:01:22]} 16...
Nxe5 {[%clk 0:02:04.3]} 17. Qxe5 {[%clk 0:01:22.9]} 17... f6 {[%clk 0:01:54.1]}
18. Qd4 {[%clk 0:00:38.8]} 18... Kf7 {[%clk 0:01:40.1]} 19. Rfd1 {[%clk
0:00:34.2]} 19... Be7 {[%clk 0:01:18.9]} 20. Nd6+ {[%clk 0:00:19.6]} 20... Bxd6
{[%clk 0:01:17.1]} 21. Qxd6 {[%clk 0:00:20.5]} 21... Ra7 {[%clk 0:01:17.1]} 22.
g3 {[%clk 0:00:12.5]} 22... Re8 {[%clk 0:01:15]} 23. Kg2 {[%clk 0:00:12.2]}
23... Qxa2 {[%clk 0:01:00.4]} 24. Qc7+ {[%clk 0:00:12.1]} 24... Kg8 {[%clk
0:00:55.7]} 25. Rd8 {[%clk 0:00:07.5]} 25... Rxd8 {[%clk 0:00:54.7]} 26. Qxd8+
{[%clk 0:00:08.4]} 26... Kf7 {[%clk 0:00:55.2]} 27. Qc7+ {[%clk 0:00:06.4]}
27... Kg6 {[%clk 0:00:19.9]} 28. Rb4 {[%clk 0:00:06.5]} 28... Ra5 {[%clk
0:00:18.8]} 29. h4 {[%clk 0:00:05.2]} 29... e5 {[%clk 0:00:17.5]} 30. h5+ {[%clk
0:00:04.8]} 30... Kh6 {[%clk 0:00:17.6]} 31. Qxc8 {[%clk 0:00:04.4]} 31... Ra3
{[%clk 0:00:15.1]} 32. Be4 {[%clk 0:00:03.2]} 32... Qa1 {[%clk 0:00:13.1]} 33.
Qf5 {[%clk 0:00:03.1]} 33... g6 {[%clk 0:00:11.7]} 34. hxg6 {[%clk 0:00:03.2]}
34... Qc1 {[%clk 0:00:09.8]} 35. Qh3+ {[%clk 0:00:03.2]} 35... Kg7 {[%clk
0:00:09.3]} 36. Qxh7+ {[%clk 0:00:03.4]} 36... Kf8 {[%clk 0:00:10.2]} 37. Qf7#
{[%clk 0:00:04]} 1-0

[Event "*** SCC Grand Prix: Titled Tuesday Blitz"]
[Site "Chess.com"]
[Date "2020.08.04"]
[Round "8"]
[White "KuzubovYuriy"]
[Black "DenLaz"]
[Result "1/2-1/2"]
[WhiteElo "2829"]
[BlackElo "2726"]
[TimeControl "180+1"]
[EndTime "15:17:40 PDT"]
[Termination "Game drawn by repetition"]

1. d4 {[%clk 0:03:00.9]} 1... d5 {[%clk 0:02:59.6]} 2. c4 {[%clk 0:03:00.6]}
2... c6 {[%clk 0:02:59.6]} 3. e3 {[%clk 0:03:00]} 3... Nf6 {[%clk 0:02:59.1]} 4.
Nc3 {[%clk 0:02:59.9]} 4... Bf5 {[%clk 0:02:57.8]} 5. Nf3 {[%clk 0:02:58.4]}
5... e6 {[%clk 0:02:57.2]} 6. Nh4 {[%clk 0:02:58.2]} 6... Be4 {[%clk 0:02:54.8]}
7. f3 {[%clk 0:02:56.3]} 7... Bg6 {[%clk 0:02:48.8]} 8. Qb3 {[%clk 0:02:55.8]}
8... Qc7 {[%clk 0:02:47.6]} 9. Bd2 {[%clk 0:02:52.4]} 9... Be7 {[%clk
0:02:47.7]} 10. g3 {[%clk 0:02:50.8]} 10... Nbd7 {[%clk 0:02:45]} 11. cxd5
{[%clk 0:02:50.1]} 11... Nxd5 {[%clk 0:02:38.1]} 12. Nxg6 {[%clk 0:02:45.8]}
12... hxg6 {[%clk 0:02:37.1]} 13. O-O-O {[%clk 0:02:42.8]} 13... O-O-O {[%clk
0:02:32.7]} 14. Kb1 {[%clk 0:02:40.6]} 14... Kb8 {[%clk 0:02:27.9]} 15. e4
{[%clk 0:02:32.9]} 15... Nxc3+ {[%clk 0:02:26]} 16. Bxc3 {[%clk 0:02:31.3]}
16... Bf6 {[%clk 0:02:23.9]} 17. Be2 {[%clk 0:02:05.6]} 17... Qb6 {[%clk
0:02:14.7]} 18. Qc4 {[%clk 0:01:37.4]} 18... Ka8 {[%clk 0:02:01.9]} 19. Qa4
{[%clk 0:01:35.9]} 19... Qc7 {[%clk 0:01:59.5]} 20. f4 {[%clk 0:01:30.2]} 20...
Nb6 {[%clk 0:01:54.7]} 21. Qb3 {[%clk 0:01:26.4]} 21... c5 {[%clk 0:01:52.7]}
22. e5 {[%clk 0:01:17.4]} 22... Be7 {[%clk 0:01:51.9]} 23. dxc5 {[%clk
0:01:17.2]} 23... Qxc5 {[%clk 0:01:49.3]} 24. Bf3 {[%clk 0:01:10.1]} 24... Qc4
{[%clk 0:01:21.9]} 25. Qxc4 {[%clk 0:00:59.3]} 25... Nxc4 {[%clk 0:01:22.8]} 26.
Rxd8+ {[%clk 0:00:49.7]} 26... Rxd8 {[%clk 0:01:21.5]} 27. Rd1 {[%clk
0:00:48.6]} 27... Rxd1+ {[%clk 0:01:16.1]} 28. Bxd1 {[%clk 0:00:49.5]} 28... Nb6
{[%clk 0:01:08.3]} 29. Bd4 {[%clk 0:00:44.5]} 29... Kb8 {[%clk 0:01:07.4]} 30.
Bf3 {[%clk 0:00:43.9]} 30... Kc7 {[%clk 0:01:07]} 31. Kc2 {[%clk 0:00:43.2]}
31... a6 {[%clk 0:01:06.4]} 32. g4 {[%clk 0:00:39.5]} 32... Nd7 {[%clk 0:01:05]}
33. h3 {[%clk 0:00:32.9]} 33... Bc5 {[%clk 0:01:03.2]} 34. Kd3 {[%clk
0:00:32.8]} 34... Bxd4 {[%clk 0:00:52.8]} 35. Kxd4 {[%clk 0:00:32.9]} 35... b6
{[%clk 0:00:52.9]} 36. b4 {[%clk 0:00:32.5]} 36... a5 {[%clk 0:00:50.6]} 37. a3
{[%clk 0:00:30.6]} 37... axb4 {[%clk 0:00:50.7]} 38. axb4 {[%clk 0:00:30.4]}
38... Nb8 {[%clk 0:00:41.8]} 39. Kc4 {[%clk 0:00:27]} 39... Nc6 {[%clk
0:00:33.2]} 40. Be4 {[%clk 0:00:26.1]} 40... Ne7 {[%clk 0:00:31.6]} 41. h4
{[%clk 0:00:24.4]} 41... Ng8 {[%clk 0:00:30.2]} 42. Kb5 {[%clk 0:00:22.6]} 42...
Ne7 {[%clk 0:00:30.1]} 43. Bf3 {[%clk 0:00:21.9]} 43... Nc8 {[%clk 0:00:25.3]}
44. Ka6 {[%clk 0:00:19.2]} 44... Ne7 {[%clk 0:00:25.4]} 45. Kb5 {[%clk
0:00:18.7]} 45... Nc8 {[%clk 0:00:25.1]} 46. Kc4 {[%clk 0:00:18.3]} 46... Ne7
{[%clk 0:00:25]} 47. Be4 {[%clk 0:00:18.2]} 47... Ng8 {[%clk 0:00:24.1]} 48. Bd3
{[%clk 0:00:17]} 48... Ne7 {[%clk 0:00:23.8]} 49. Be4 {[%clk 0:00:16.7]} 1/2-1/2

[Event "*** SCC Grand Prix: Titled Tuesday Blitz"]
[Site "Chess.com"]
[Date "2020.08.04"]
[Round "8"]
[White "ketster"]
[Black "Martins-BR"]
[Result "1-0"]
[WhiteElo "2386"]
[BlackElo "2217"]
[TimeControl "180+1"]
[EndTime "15:17:42 PDT"]
[Termination "ketster won on time"]

1. d4 {[%clk 0:02:44.8]} 1... f5 {[%clk 0:02:58.6]} 2. c4 {[%clk 0:02:44.7]}
2... Nf6 {[%clk 0:02:58.1]} 3. Nc3 {[%clk 0:02:43.9]} 3... d6 {[%clk 0:02:58.4]}
4. Nf3 {[%clk 0:02:43]} 4... g6 {[%clk 0:02:57.8]} 5. e3 {[%clk 0:02:42.1]} 5...
Bg7 {[%clk 0:02:57.6]} 6. b4 {[%clk 0:02:40.5]} 6... O-O {[%clk 0:02:56.1]} 7.
Bb2 {[%clk 0:02:38.8]} 7... c6 {[%clk 0:02:53.8]} 8. Be2 {[%clk 0:02:37.2]} 8...
Qe8 {[%clk 0:02:53.1]} 9. O-O {[%clk 0:02:37.3]} 9... e5 {[%clk 0:02:52.4]} 10.
dxe5 {[%clk 0:02:35.1]} 10... dxe5 {[%clk 0:02:52]} 11. Qb3 {[%clk 0:02:26.6]}
11... Na6 {[%clk 0:02:38.4]} 12. Rad1 {[%clk 0:02:14.3]} 12... e4 {[%clk
0:02:31]} 13. Nd4 {[%clk 0:02:12.5]} 13... Be6 {[%clk 0:02:22]} 14. Nxe6 {[%clk
0:02:09.6]} 14... Qxe6 {[%clk 0:02:21.1]} 15. Ba3 {[%clk 0:01:59.8]} 15... Rfd8
{[%clk 0:02:18.7]} 16. b5 {[%clk 0:01:58.8]} 16... cxb5 {[%clk 0:01:38.5]} 17.
cxb5 {[%clk 0:01:56.7]} 17... Qxb3 {[%clk 0:01:36.4]} 18. axb3 {[%clk
0:01:57.6]} 18... Nc7 {[%clk 0:01:35.5]} 19. Bc4+ {[%clk 0:01:53.7]} 19... Kh8
{[%clk 0:01:33.3]} 20. Bd6 {[%clk 0:01:31.5]} 20... Nce8 {[%clk 0:01:19.8]} 21.
Be5 {[%clk 0:01:22.5]} 21... Ng4 {[%clk 0:01:12.1]} 22. Bxg7+ {[%clk 0:01:19.8]}
22... Kxg7 {[%clk 0:01:13]} 23. Rxd8 {[%clk 0:01:07.3]} 23... Rxd8 {[%clk
0:01:11.7]} 24. Ra1 {[%clk 0:01:07.9]} 24... Ra8 {[%clk 0:00:55.4]} 25. Nd5
{[%clk 0:01:01.6]} 25... Ne5 {[%clk 0:00:53.6]} 26. Bf1 {[%clk 0:00:58.5]} 26...
Nd7 {[%clk 0:00:34.2]} 27. f3 {[%clk 0:00:51.9]} 27... exf3 {[%clk 0:00:32.1]}
28. gxf3 {[%clk 0:00:52.8]} 28... Nd6 {[%clk 0:00:21.6]} 29. Kf2 {[%clk
0:00:40.5]} 29... Rc8 {[%clk 0:00:16.3]} 30. Rxa7 {[%clk 0:00:38.8]} 30... Rc2+
{[%clk 0:00:15.2]} 31. Be2 {[%clk 0:00:38.3]} 31... h5 {[%clk 0:00:11.5]} 32.
Ra8 {[%clk 0:00:28.4]} 32... Rb2 {[%clk 0:00:10.7]} 33. Rd8 {[%clk 0:00:27.4]}
33... Ne5 {[%clk 0:00:04.5]} 34. Rxd6 {[%clk 0:00:27]} 34... Rxb3 {[%clk
0:00:04]} 35. Nc7 {[%clk 0:00:24.1]} 35... Rb2 {[%clk 0:00:02.4]} 36. Kf1 {[%clk
0:00:17.1]} 36... h4 {[%clk 0:00:01.4]} 37. h3 {[%clk 0:00:15.6]} 37... Kh6
{[%clk 0:00:01.2]} 38. f4 {[%clk 0:00:15.5]} 1-0

[Event "*** SCC Grand Prix: Titled Tuesday Blitz"]
[Site "Chess.com"]
[Date "2020.08.04"]
[Round "8"]
[White "kosya4ok"]
[Black "RaphCamora"]
[Result "1-0"]
[WhiteElo "2715"]
[BlackElo "2455"]
[TimeControl "180+1"]
[EndTime "15:17:44 PDT"]
[Termination "kosya4ok won on time"]

1. d4 {[%clk 0:03:00.9]} 1... d5 {[%clk 0:02:58.6]} 2. c4 {[%clk 0:03:01.3]}
2... e6 {[%clk 0:02:58.6]} 3. Nf3 {[%clk 0:03:02.2]} 3... Nf6 {[%clk 0:02:57.8]}
4. Nc3 {[%clk 0:03:02.8]} 4... dxc4 {[%clk 0:02:57.4]} 5. e4 {[%clk 0:03:02.4]}
5... b5 {[%clk 0:02:57.2]} 6. e5 {[%clk 0:03:02]} 6... Nd5 {[%clk 0:02:57.8]} 7.
Nxb5 {[%clk 0:03:02.2]} 7... Nb6 {[%clk 0:02:58.4]} 8. Be2 {[%clk 0:03:02.4]}
8... Nc6 {[%clk 0:02:58.3]} 9. O-O {[%clk 0:03:02.8]} 9... Be7 {[%clk
0:02:56.6]} 10. Qd2 {[%clk 0:03:03.2]} 10... Bb7 {[%clk 0:02:50.3]} 11. Qf4
{[%clk 0:03:02.1]} 11... O-O {[%clk 0:02:20.2]} 12. Qg3 {[%clk 0:02:59.9]} 12...
Kh8 {[%clk 0:02:17.1]} 13. Rd1 {[%clk 0:02:59.9]} 13... Rb8 {[%clk 0:02:11.7]}
14. b3 {[%clk 0:02:52.6]} 14... a6 {[%clk 0:02:03.9]} 15. Nc3 {[%clk 0:02:50.3]}
15... cxb3 {[%clk 0:02:01.7]} 16. axb3 {[%clk 0:02:49.4]} 16... Nb4 {[%clk
0:02:01.2]} 17. Ng5 {[%clk 0:02:24.3]} 17... h6 {[%clk 0:01:30.8]} 18. Nf3
{[%clk 0:01:57.8]} 18... Bxf3 {[%clk 0:00:55.8]} 19. Bxf3 {[%clk 0:01:54.3]}
19... Nc2 {[%clk 0:00:56.3]} 20. Ra2 {[%clk 0:01:21.5]} 20... Nxd4 {[%clk
0:00:55.8]} 21. Be4 {[%clk 0:01:21.7]} 21... c5 {[%clk 0:00:45.3]} 22. Bb1
{[%clk 0:01:09]} 22... Bg5 {[%clk 0:00:24.2]} 23. f4 {[%clk 0:01:01.4]} 23...
Bh4 {[%clk 0:00:21.9]} 24. Qd3 {[%clk 0:00:59.9]} 24... g6 {[%clk 0:00:18.4]}
25. Qh3 {[%clk 0:01:00.2]} 25... Kg7 {[%clk 0:00:16.9]} 26. g3 {[%clk
0:00:49.2]} 26... Nd5 {[%clk 0:00:14.5]} 27. Ne4 {[%clk 0:00:27.2]} 27... Be7
{[%clk 0:00:13.6]} 28. Rf2 {[%clk 0:00:15.4]} 28... Rxb3 {[%clk 0:00:13.1]} 29.
f5 {[%clk 0:00:15.9]} 29... Nxf5 {[%clk 0:00:05.5]} 30. Rxf5 {[%clk 0:00:15]}
30... Rh8 {[%clk 0:00:06.4]} 31. Rxf7+ {[%clk 0:00:13]} 31... Kxf7 {[%clk
0:00:06]} 32. Rf1+ {[%clk 0:00:13.8]} 32... Kg7 {[%clk 0:00:05.3]} 33. Qxe6
{[%clk 0:00:13.8]} 33... Rf8 {[%clk 0:00:04.9]} 34. Nf6 {[%clk 0:00:04.5]} 34...
Rxb1 {[%clk 0:00:02.6]} 35. Bxh6+ {[%clk 0:00:04.9]} 35... Kxh6 {[%clk 0:00:02]}
36. Qh3+ {[%clk 0:00:04.8]} 1-0

[Event "*** SCC Grand Prix: Titled Tuesday Blitz"]
[Site "Chess.com"]
[Date "2020.08.04"]
[Round "8"]
[White "Belka1989"]
[Black "Klavdia_Nik"]
[Result "0-1"]
[WhiteElo "2256"]
[BlackElo "2022"]
[TimeControl "180+1"]
[EndTime "15:17:51 PDT"]
[Termination "Klavdia_Nik won by checkmate"]

1. d4 {[%clk 0:03:00.9]} 1... Nf6 {[%clk 0:02:59.3]} 2. Nf3 {[%clk 0:03:01.4]}
2... c5 {[%clk 0:02:59]} 3. c3 {[%clk 0:03:00.7]} 3... b6 {[%clk 0:02:58.9]} 4.
Bf4 {[%clk 0:03:01.3]} 4... Bb7 {[%clk 0:02:58.6]} 5. e3 {[%clk 0:03:01.8]} 5...
g6 {[%clk 0:02:58.1]} 6. Nbd2 {[%clk 0:03:02.3]} 6... Bg7 {[%clk 0:02:57.8]} 7.
Be2 {[%clk 0:03:00.4]} 7... O-O {[%clk 0:02:57]} 8. h3 {[%clk 0:02:57.9]} 8...
d6 {[%clk 0:02:54.7]} 9. O-O {[%clk 0:02:58]} 9... Nbd7 {[%clk 0:02:53.6]} 10.
Re1 {[%clk 0:02:58]} 10... e5 {[%clk 0:02:39.9]} 11. dxe5 {[%clk 0:02:55.9]}
11... Nd5 {[%clk 0:02:22.2]} 12. exd6 {[%clk 0:02:41.2]} 12... Nxf4 {[%clk
0:02:19.2]} 13. exf4 {[%clk 0:02:42.1]} 13... Qf6 {[%clk 0:02:17.4]} 14. Qa4
{[%clk 0:02:28.6]} 14... Qxd6 {[%clk 0:02:11.9]} 15. Rad1 {[%clk 0:02:26.1]}
15... Qc7 {[%clk 0:01:58.7]} 16. Bb5 {[%clk 0:01:51.2]} 16... Nf6 {[%clk
0:01:48.9]} 17. Ne5 {[%clk 0:01:26.8]} 17... a6 {[%clk 0:01:48.2]} 18. Be2
{[%clk 0:01:16.1]} 18... b5 {[%clk 0:01:47.3]} 19. Qc2 {[%clk 0:01:12.7]} 19...
Nd5 {[%clk 0:01:41.5]} 20. g3 {[%clk 0:00:32.4]} 20... Bxe5 {[%clk 0:01:28.4]}
21. fxe5 {[%clk 0:00:31.1]} 21... Qxe5 {[%clk 0:01:29.3]} 22. Bf3 {[%clk
0:00:28.3]} 22... Qc7 {[%clk 0:01:17.9]} 23. Nb3 {[%clk 0:00:21.5]} 23... Rad8
{[%clk 0:01:12.6]} 24. Bxd5 {[%clk 0:00:04.7]} 24... Bxd5 {[%clk 0:01:10.4]} 25.
Nd2 {[%clk 0:00:04.9]} 25... Kg7 {[%clk 0:00:52.5]} 26. Ne4 {[%clk 0:00:04.7]}
26... h6 {[%clk 0:00:49.2]} 27. Nd2 {[%clk 0:00:02]} 27... Bb7 {[%clk 0:00:37]}
28. Re3 {[%clk 0:00:02]} 28... Qc6 {[%clk 0:00:29.7]} 29. Nf3 {[%clk 0:00:02.6]}
29... Rde8 {[%clk 0:00:15.2]} 30. Rde1 {[%clk 0:00:02.5]} 30... Rxe3 {[%clk
0:00:11.8]} 31. Rxe3 {[%clk 0:00:03.4]} 31... h5 {[%clk 0:00:11.1]} 32. Qe2
{[%clk 0:00:03.9]} 32... c4 {[%clk 0:00:09.9]} 33. Re7 {[%clk 0:00:03.4]} 33...
Qxf3 {[%clk 0:00:08.8]} 34. Qe5+ {[%clk 0:00:03.1]} 34... Kg8 {[%clk 0:00:07.9]}
35. Kf1 {[%clk 0:00:02]} 35... Qd1+ {[%clk 0:00:04.7]} 36. Qe1 {[%clk
0:00:01.3]} 36... Qd3+ {[%clk 0:00:01.7]} 37. Kg1 {[%clk 0:00:01.4]} 37... Qf3
{[%clk 0:00:01.6]} 38. h4 {[%clk 0:00:02.3]} 38... Qg2# {[%clk 0:00:01.6]} 0-1